bitfinex/quotes_SOLUSD_20241115
["timestamp","ask_amount","ask_price","bid_price","bid_amount"]
[1731630477088,43.34509849,212.14,212.02,4.7163]
[1731630477089,20.0,212.13,212.02,4.7163]
[1731630477298,23.34509849,212.07,212.02,4.7163]
[1731630478295,23.34509849,212.07,212.03,0.12549]
[1731630478586,23.34509849,212.07,212.03,4.84169]
[1731630479009,23.34509849,212.07,212.05,0.12549]
[1731630481221,23.34509849,212.14,212.07,0.12549]
[1731630481809,4.7135,212.16,212.07,0.12549]
[1731630482024,4.7135,212.16,212.0,16.5088]
[1731630482199,4.8135,212.16,212.0,16.5088]
[1731630482396,0.1,212.15,212.0,16.5088]
[1731630482714,4.8138,212.14,212.01,0.12549]
[1731630482892,23.34509849,212.06,212.01,0.12549]
[1731630483294,23.34509849,212.06,212.0,16.5088]
[1731630484424,23.34509849,212.08,212.0,39.85389849]
[1731630484602,23.34509849,212.08,212.01,0.12549]
[1731630485025,23.34509849,212.06,212.01,0.12549]
[1731630485512,23.34509849,212.06,212.01,23.902374]
[1731630486124,23.34509849,212.1,212.03,0.12549]
[1731630486333,23.34509849,212.1,212.03,23.902374]
[1731630486616,23.34509849,212.12,212.05,23.902374]
[1731630486808,14.55273973,212.12,212.05,23.902374]
[1731630488241,14.55273973,212.12,212.07,23.902374]
[1731630488515,14.55273973,212.1,212.07,0.12549]
[1731630489319,4.7144,212.12,211.99,11.3529]
[1731630489320,14.55273973,212.08,211.99,11.3529]
[1731630489523,14.55273973,212.01,211.94,10.9181]
[1731630490023,14.55273973,211.95,211.93,0.70739873]
[1731630490518,19.27083973,211.95,211.93,0.70739873]
[1731630490710,14.55273973,211.95,211.93,0.70739873]
[1731630491027,23.32794561,211.94,211.93,0.70739873]
[1731630491313,23.32794561,211.98,211.94,0.12549]
[1731630491531,23.32794561,211.98,211.94,23.902374]
[1731630492716,23.32794561,212.04,211.94,23.902374]
[1731630492717,23.32794561,211.96,211.94,0.12549]
[1731630494301,23.32794561,211.98,211.94,23.902374]
[1731630494532,23.32794561,212.0,211.94,28.620574]
[1731630494917,4.7163,212.03,211.93,0.70739873]
[1731630494918,23.32794561,211.95,211.93,0.70739873]
[1731630495942,43.32794561,211.95,211.94,0.12549]
[1731630496252,23.32794561,211.95,211.94,0.12549]
[1731630497333,23.32794561,211.97,211.9,4.7191]
[1731630497532,4.7173,211.99,211.89,23.32794561]
[1731630497533,23.32794561,211.95,211.89,23.776884]
[1731630497734,23.32794561,211.93,211.88,16.5183]
[1731630498253,23.32794561,211.93,211.89,0.12549]
[1731630498424,23.32794561,211.95,211.89,0.12549]
[1731630498622,23.32794561,211.95,211.89,16.64329]
[1731630498849,23.32794561,212.03,211.93,23.32794561]
[1731630499030,23.32794561,212.03,211.96,23.776884]
[1731630499546,23.32794561,212.03,211.97,0.12549]
[1731630500139,23.32794561,212.03,211.97,4.84299]
[1731630500352,23.32794561,212.03,211.99,0.12549]
[1731630501447,23.32794561,212.01,211.94,23.776884]
[1731630501742,23.32794561,211.99,211.95,0.12549]
[1731630503428,23.32794561,212.01,211.97,0.12549]
[1731630503618,23.32794561,212.03,211.97,0.12549]
[1731630504435,23.32794561,212.03,211.99,0.12549]
[1731630504824,23.32794561,212.03,211.99,23.902374]
[1731630505536,23.32794561,212.01,211.95,11.7952]
[1731630505723,23.32794561,211.99,211.96,23.776884]
[1731630506145,23.32794561,211.99,211.92,20.1947]
[1731630506548,23.32794561,211.99,211.94,23.776884]
[1731630506843,23.32794561,211.97,211.95,0.12549]
[1731630507446,23.32794561,211.97,211.93,23.776884]
[1731630508049,23.32794561,211.95,211.92,23.776884]
[1731630508340,23.32794561,211.95,211.88,5.4271568]
[1731630509025,23.32794561,211.93,211.89,0.12549]
[1731630509233,23.32794561,211.91,211.88,0.7077568]
[1731630509545,23.32794561,211.91,211.89,0.12549]
[1731630509747,23.32794561,211.93,211.89,0.12549]
[1731630510140,23.32794561,211.97,211.89,0.12549]
[1731630510354,23.32794561,212.01,211.94,23.776884]
[1731630510557,0.1,212.09,211.94,23.776884]
[1731630510558,23.32794561,212.05,211.98,23.776884]
[1731630510724,23.32794561,212.07,211.99,23.32794561]
[1731630510928,23.32794561,212.07,212.01,0.12549]
[1731630511545,23.32794561,212.09,212.03,0.12549]
[1731630512627,23.32794561,212.11,212.05,23.902374]
[1731630512834,4.7136,212.15,212.05,23.902374]
[1731630512835,23.32794561,212.09,212.05,0.12549]
[1731630513048,23.32794561,212.09,212.03,23.776884]
[1731630513282,23.32794561,212.05,212.04,0.12549]
[1731630513757,23.32794561,212.11,212.04,23.902374]
[1731630514852,23.32794561,212.11,212.06,23.902374]
[1731630516027,23.32794561,212.11,212.06,4.84099]
[1731630516545,23.32794561,212.11,212.08,0.12549]
[1731630518829,23.32794561,212.09,212.03,11.7907]
[1731630519229,23.32794561,212.09,212.04,0.12549]
[1731630519429,23.32794561,212.07,212.04,0.12549]
[1731630519749,23.32794561,212.07,212.03,0.12549]
[1731630521555,43.32794561,212.04,211.94,18.056]
[1731630521855,23.32794561,211.98,211.94,22.7743]
[1731630522034,23.32794561,211.98,211.95,0.12549]
[1731630522236,23.32794561,211.98,211.94,22.7743]
[1731630522751,23.32794561,211.98,211.94,11.7952]
[1731630522952,23.32794561,211.98,211.89,23.32794561]
[1731630522953,23.32794561,211.98,211.91,4.7187]
[1731630523132,23.32794561,211.96,211.91,4.7187]
[1731630523457,23.32794561,211.96,211.88,40.2738568]
[1731630523458,23.32794561,211.92,211.88,0.7077568]
[1731630523644,0.1,212.0,211.98,134.87205439]
[1731630523835,0.1,211.98,211.89,0.12549]
[1731630524155,23.32794561,211.9,211.89,0.12549]
[1731630526042,23.32794561,211.98,211.93,0.1]
[1731630526537,23.32794561,211.96,211.93,0.1]
[1731630526942,23.32794561,211.96,211.91,0.1]
[1731630527141,23.32794561,211.94,211.91,0.1]
[1731630527536,28.04624561,211.94,211.91,0.1]
[1731630527746,23.32794561,211.94,211.91,0.1]
[1731630528832,0.1,211.99,211.98,130.25385439]
[1731630529029,20.0,211.98,211.91,0.1]
[1731630529952,23.32794561,211.93,211.89,24.002374]
[1731630530543,23.32794561,211.91,211.89,0.22549]
[1731630530773,23.32794561,211.91,211.89,0.12549]
[1731630531143,23.32794561,211.91,211.89,0.22549]
[1731630531348,23.32794561,211.91,211.88,0.7077568]
[1731630531549,4.7176,211.97,211.88,0.7077568]
[1731630531550,23.32794561,211.89,211.88,0.7077568]
[1731630532270,20.0,211.88,211.82,0.1]
[1731630532446,23.32794561,211.85,211.82,0.1]
[1731630533049,0.1,211.93,211.82,0.1]
[1731630533050,23.32794561,211.89,211.87,0.1]
[1731630533367,23.32794561,211.91,211.87,0.1]
[1731630533755,28.04694561,211.91,211.87,0.1]
[1731630534669,23.32794561,211.89,211.86,0.12549]
[1731630534971,23.32794561,211.89,211.82,16.5232]
[1731630534972,23.32794561,211.86,211.83,23.876884]
[1731630535265,23.32794561,211.86,211.84,0.12549]
[1731630535458,23.32794561,211.86,211.85,0.1]
[1731630536163,23.32794561,211.88,211.85,0.1]
[1731630536673,23.32794561,211.88,211.84,0.12549]
[1731630536860,84.72643978,212.07,211.97,41.24699723]
[1731630536861,43.776884,211.98,211.97,41.24699723]
[1731630537048,67.10482961,211.98,211.84,0.12549]
[1731630537247,23.32794561,211.87,211.84,0.12549]
[1731630537847,23.32794561,211.89,211.86,0.12549]
[1731630538271,23.32794561,211.89,211.87,0.1]
[1731630539473,23.32794561,211.91,211.89,0.1]
[1731630540056,23.32794561,211.93,211.9,0.22549]
[1731630540372,23.32794561,211.93,211.9,0.12549]
[1731630540554,23.32794561,211.91,211.9,0.12549]
[1731630540751,23.32794561,211.91,211.88,0.22549]
[1731630541254,23.32794561,211.93,211.89,0.22549]
[1731630541455,23.32794561,211.93,211.91,0.1]
[1731630541958,23.32794561,211.93,211.9,0.1]
[1731630542159,23.32794561,211.93,211.91,0.1]
[1731630542970,4.7181,211.95,211.91,0.1]
[1731630542971,28.04604561,211.95,211.91,0.22549]
[1731630543559,28.04604561,211.95,211.9,0.22549]
[1731630543972,28.04604561,211.95,211.91,0.1]
[1731630545075,28.04604561,211.95,211.9,0.1]
[1731630545452,23.32794561,211.97,211.91,0.1]
[1731630545656,23.32794561,211.97,211.93,0.1]
[1731630545863,28.04514561,211.99,211.94,0.1]
[1731630546173,28.04514561,211.99,211.94,0.22549]
[1731630546561,28.04514561,211.99,211.94,0.12549]
[1731630546763,35.11834561,212.04,211.91,0.1]
[1731630546764,14.57709844,211.96,211.91,0.1]
[1731630547573,14.57709844,211.96,211.92,0.1]
[1731630548081,19.29499844,211.96,211.92,0.22549]
[1731630548471,4.7179,211.96,211.92,0.22549]
[1731630548675,19.29469844,211.98,211.92,0.1]
[1731630550268,19.29469844,211.98,211.91,0.22549]
[1731630550269,14.57709844,211.94,211.91,0.22549]
[1731630550471,4.7176,211.98,211.91,0.22549]
[1731630550820,14.57709844,211.99,211.94,0.1]
[1731630550960,4.7171,212.0,211.96,0.1]
[1731630551162,14.57709844,211.97,211.93,0.12549]
[1731630551480,14.57709844,211.97,211.93,0.22549]
[1731630551779,14.57709844,211.99,211.95,0.1]
[1731630551983,15.2322,212.05,211.97,0.1]
[1731630551984,14.57709844,212.03,211.97,0.1]
[1731630552278,14.57709844,212.03,211.98,0.22549]
[1731630552478,14.57709844,212.01,211.98,0.12549]
[1731630553265,14.57709844,211.99,211.96,0.12549]
[1731630553977,14.57709844,211.99,211.95,0.22549]
[1731630554174,19.29429844,211.99,211.95,0.22549]
[1731630554376,14.57709844,211.99,211.95,0.22549]
[1731630554578,14.57709844,212.01,211.96,0.1]
[1731630554985,14.57709844,212.01,211.95,0.22549]
[1731630555184,14.57709844,212.01,211.96,0.1]
[1731630555564,14.57709844,212.03,211.98,0.2]
[1731630556276,4.7165,212.02,211.98,0.1]
[1731630556481,14.57709844,212.03,212.0,0.1]
[1731630556659,19.29339844,212.03,211.99,0.1]
[1731630556866,19.29339844,212.03,211.98,0.22549]
[1731630557384,20.0,212.0,211.96,0.12549]
[1731630557589,20.0,212.0,211.91,0.1]
[1731630557590,14.57709844,211.97,211.91,0.1]
[1731630557883,16.507,212.03,211.91,0.1]
[1731630557884,14.57709844,211.99,211.95,0.1]
[1731630558084,14.57709844,212.01,211.97,0.2]
[1731630558379,24.7165,212.02,211.97,0.2]
[1731630558683,24.7165,212.02,211.98,0.12549]
[1731630559079,20.0,211.98,211.94,0.1]
[1731630559268,14.57709844,211.97,211.92,0.1]
[1731630560379,19.29479844,211.97,211.92,0.1]
[1731630561086,11.7913,212.02,211.94,0.1]
[1731630561087,19.29439844,211.99,211.94,0.1]
[1731630561294,39.29389844,212.01,211.98,0.1]
[1731630562487,19.29289844,212.05,212.0,0.1]
[1731630562685,19.29289844,212.05,212.0,0.2]
[1731630562888,19.29289844,212.05,212.0,0.1]
[1731630563195,19.29289844,212.05,211.98,23.776884]
[1731630563196,14.57709844,212.03,212.01,0.12549]
[1731630563685,19.29349844,212.03,211.99,0.12549]
[1731630563889,19.29349844,212.03,212.0,0.1]
[1731630564080,19.29349844,212.03,211.99,0.12549]
[1731630564481,4.7164,212.03,212.0,0.1]
[1731630564792,4.7164,212.03,211.99,0.12549]
[1731630565112,4.7164,212.03,212.0,0.1]
[1731630565394,161.6,212.13,211.99,0.12549]
[1731630565395,19.29199844,212.09,212.05,0.1]
[1731630565775,19.29199844,212.09,212.03,0.22549]
[1731630566277,19.29199844,212.09,212.01,23.776884]
[1731630566278,19.29199844,212.09,212.05,0.22549]
[1731630566596,19.29199844,212.09,212.05,0.12549]
[1731630566895,19.29199844,212.09,212.05,0.22549]
[1731630567198,19.29169844,212.11,212.05,0.22549]
[1731630567492,19.29169844,212.11,212.06,0.22549]
[1731630567791,20.0,212.1,212.06,0.22549]
[1731630567997,20.0,212.1,212.06,0.1]
[1731630569266,19.29169844,212.11,212.07,0.1]
[1731630570579,19.29169844,212.11,212.07,0.22549]
[1731630571581,14.57709844,212.09,212.04,0.1]
[1731630572088,4.7146,212.11,212.03,0.22549]
[1731630572089,14.57709844,212.07,212.03,0.22549]
[1731630572285,14.57709844,212.05,211.99,6.701]
[1731630572493,14.57709844,212.01,211.97,0.2]
[1731630572677,14.57709844,212.01,211.99,0.1]
[1731630572874,14.57709844,212.02,211.98,0.12549]
[1731630573083,14.57709844,212.02,211.99,0.1]
[1731630573274,14.57709844,212.02,211.98,0.12549]
[1731630573671,19.29379844,212.02,211.98,0.12549]
[1731630574289,4.7167,212.02,211.99,0.1]
[1731630574879,14.57709844,212.0,211.97,0.1]
[1731630575090,14.57709844,211.98,211.93,15.3655]
[1731630575399,14.57709844,211.99,211.95,0.2]
[1731630575615,14.57709844,211.99,211.95,0.1]
[1731630575900,14.57709844,211.96,211.93,15.2655]
[1731630576090,14.57709844,211.96,211.93,15.1655]
[1731630576271,14.57709844,211.94,211.91,0.70751608]
[1731630576476,34.57709844,211.97,211.93,0.2]
[1731630576700,34.57709844,211.97,211.94,0.12549]
[1731630577191,14.57709844,211.96,211.91,0.90751608]
[1731630577390,14.57709844,211.96,211.93,0.1]
[1731630577785,14.57709844,211.96,211.92,0.12549]
[1731630578169,161.6,212.04,211.96,0.1]
[1731630578371,14.57709844,211.99,211.98,0.1]
[1731630579202,19.29439844,211.99,211.94,0.2]
[1731630579378,19.29439844,211.99,211.96,0.1]
[1731630579573,14.57709844,212.01,211.98,0.1]
[1731630579889,19.29339844,212.03,212.0,0.1]
[1731630580087,19.29339844,212.03,212.0,0.22549]
[1731630580830,14.57709844,212.07,212.03,0.1]
[1731630580974,14.57709844,212.09,212.07,0.1]
[1731630581296,19.29159844,212.11,212.07,0.22549]
[1731630581501,14.57709844,212.11,212.09,0.1]
[1731630582204,4.7144,212.12,212.09,0.22549]
[1731630582387,14.57709844,212.15,212.11,0.1]
[1731630582697,14.57709844,212.19,212.13,0.1]
[1731630583281,19.28999844,212.19,212.13,0.22549]
[1731630583499,19.28949844,212.21,212.17,0.1]
[1731630583683,19.28949844,212.21,212.18,0.12549]
[1731630584389,11.778,212.26,212.18,0.12549]
[1731630584390,19.28909844,212.23,212.18,0.1]
[1731630584797,27.9764361,212.23,212.18,0.1]
[1731630585703,27.9767361,212.21,212.17,0.1]
[1731630586277,27.9767361,212.21,212.18,0.12549]
[1731630587182,24.7126,212.2,212.17,0.1]
[1731630587692,23.2644361,212.21,212.18,0.2]
[1731630587898,23.2644361,212.21,212.18,0.1]
[1731630588088,27.9767361,212.21,212.18,0.1]
[1731630588797,4.7123,212.21,212.18,0.1]
[1731630588994,4.7123,212.21,212.16,0.1]
[1731630588995,4.7123,212.21,212.16,0.2]
[1731630589296,4.7123,212.21,212.16,0.1]
[1731630589297,20.0,212.2,212.16,0.1]
[1731630589871,27.9767361,212.21,212.12,0.2]
[1731630589872,23.2644361,212.17,212.12,0.2]
[1731630590078,23.2644361,212.15,212.1,0.2]
[1731630590297,23.2644361,212.13,212.11,0.1]
[1731630591199,4.7145,212.11,212.06,0.2]
[1731630591382,23.2644361,212.08,212.07,0.1]
[1731630592178,23.2644361,212.1,212.08,0.1]
[1731630592388,23.2644361,212.1,212.08,0.22549]
[1731630592779,20.0,212.12,212.1,0.12549]
[1731630592780,23.2644361,212.12,212.1,0.12549]
[1731630593398,27.9789361,212.12,212.09,0.1]
[1731630594285,27.9789361,212.12,212.1,0.12549]
[1731630594699,20.0,212.11,212.08,0.12549]
[1731630594994,27.9789361,212.12,212.08,0.12549]
[1731630594995,23.2644361,212.1,212.08,0.12549]
[1731630595583,24.7149,212.09,212.05,0.1]
[1731630595829,23.2644361,212.08,212.05,0.1]
[1731630596383,23.2644361,212.08,212.06,0.1]
[1731630596582,24.7149,212.09,212.06,0.1]
[1731630597100,23.2644361,212.08,212.04,0.22549]
[1731630597304,23.2644361,212.08,212.05,0.1]
[1731630597694,23.2644361,212.08,212.05,0.22549]
[1731630597887,27.9796361,212.08,212.05,0.22549]
[1731630599206,27.9796361,212.08,212.05,0.1]
[1731630600410,27.9796361,212.08,212.04,0.1]
[1731630600590,27.9796361,212.08,212.02,0.12549]
[1731630600785,23.2644361,212.06,212.02,0.12549]
[1731630601106,20.0,212.09,212.02,23.3899261]
[1731630601311,27.9788361,212.12,212.05,23.776884]
[1731630601983,23.2644361,212.12,212.06,0.12549]
[1731630602396,27.9777361,212.17,212.09,0.12549]
[1731630602592,27.9777361,212.17,212.11,23.776884]
[1731630603008,27.9777361,212.17,212.12,0.12549]
[1731630603394,23.2644361,212.19,212.12,0.12549]
[1731630604397,27.9773361,212.19,212.12,0.12549]
[1731630604797,23.2644361,212.17,212.12,0.12549]
[1731630605593,20.0,212.22,212.12,0.12549]
[1731630605787,23.2644361,212.18,212.12,0.12549]
[1731630606028,23.2644361,212.18,212.14,0.12549]
[1731630606899,14.54468112,212.25,212.17,14.54468112]
[1731630607211,14.54468112,212.29,212.22,23.776884]
[1731630607411,4.71,212.31,212.25,14.54468112]
[1731630607593,4.71,212.31,212.26,23.776884]
[1731630608005,14.54468112,212.33,212.27,14.67017112]
[1731630608195,19.25438112,212.33,212.27,14.67017112]
[1731630608821,4.7097,212.33,212.29,0.12549]
[1731630609115,19.25438112,212.33,212.25,14.54468112]
[1731630609292,19.25438112,212.33,212.22,11.7802]
[1731630609293,14.54468112,212.31,212.23,14.54468112]
[1731630609491,14.54468112,212.31,212.25,0.12549]
[1731630610107,14.54468112,212.27,212.2,14.54468112]
[1731630610319,34.54468112,212.22,212.16,6.0447]
[1731630610509,20.1,212.26,212.11,6.0447]
[1731630610510,14.54468112,212.18,212.11,6.0447]
[1731630610842,23.27452691,212.18,212.11,6.0447]
[1731630611191,23.27452691,212.18,212.11,29.31922691]
[1731630611414,23.27452691,212.18,212.11,6.0447]
[1731630612000,23.27452691,212.22,212.15,23.27452691]
[1731630612208,27.98572691,212.26,212.18,23.27452691]
[1731630612507,4.7103,212.3,212.24,23.776884]
[1731630612704,23.27452691,212.31,212.24,23.776884]
[1731630613018,23.27452691,212.29,212.23,6.2481]
[1731630613192,23.27452691,212.25,212.21,16.0462]
[1731630614021,23.27452691,212.25,212.22,0.12549]
[1731630614207,23.27452691,212.27,212.22,23.902374]
[1731630614616,4.7108,212.28,212.22,23.902374]
[1731630615615,23.27452691,212.27,212.22,23.902374]
[1731630615822,20.0,212.26,212.22,23.902374]
[1731630616117,23.27452691,212.25,212.2,0.12549]
[1731630616512,27.98552691,212.27,212.2,0.12549]
[1731630616813,27.98552691,212.27,212.2,4.83789]
[1731630616997,27.98552691,212.27,212.22,0.12549]
[1731630618393,161.6,212.36,212.24,0.12549]
[1731630618596,23.27452691,212.31,212.24,0.12549]
[1731630619823,23.27452691,212.31,212.24,4.83709]
[1731630620131,27.98462691,212.31,212.26,0.12549]
[1731630620724,23.27452691,212.31,212.26,0.12549]
[1731630621109,23.27452691,212.29,212.21,23.27452691]
[1731630621307,23.27452691,212.29,212.22,0.12549]
[1731630621611,23.27452691,212.31,212.23,27.98622691]
[1731630621807,23.27452691,212.31,212.24,0.12549]
[1731630622526,23.27452691,212.31,212.24,23.902374]
[1731630622911,23.27452691,212.34,212.27,23.902374]
[1731630623637,23.27452691,212.36,212.3,6.2915]
[1731630623820,27.98342691,212.36,212.31,23.776884]
[1731630624130,23.27452691,212.34,212.3,6.2915]
[1731630624629,23.27452691,212.32,212.25,21.8258]
[1731630624830,23.27452691,212.3,212.26,0.12549]
[1731630626030,23.27452691,212.3,212.26,23.902374]
[1731630626210,23.27452691,212.32,212.26,40.391474]
[1731630626931,23.27452691,212.32,212.26,35.680374]
[1731630627511,27.98442691,212.32,212.26,35.680374]
[1731630627909,4.7099,212.32,212.26,23.776884]
[1731630628129,4.7099,212.32,210.9,1742.1423022]
[1731630628130,20.0,212.27,212.2,21.9459]
[1731630628324,20.0,212.27,212.14,6.1229]
[1731630628325,23.27452691,212.21,212.14,6.1229]
[1731630628631,20.0,212.27,212.14,6.1229]
[1731630628632,23.27452691,212.19,212.14,6.1229]
[1731630629008,23.27452691,212.17,212.14,6.1229]
[1731630629208,23.27452691,212.15,212.13,0.70685214]
[1731630630215,23.27452691,212.15,212.14,0.12549]
[1731630630629,23.27452691,212.15,212.13,0.70685214]
[1731630630818,23.27452691,212.15,212.14,0.12549]
[1731630631421,23.27452691,212.15,212.09,4.84029]
[1731630631723,23.27452691,212.17,212.09,39.90221691]
[1731630631923,23.27452691,212.17,212.1,23.776884]
[1731630632133,23.27452691,212.17,212.11,0.12549]
[1731630632333,23.27452691,212.19,212.11,23.40001691]
[1731630632543,23.27452691,212.21,212.13,23.27452691]
[1731630632711,23.27452691,212.21,212.14,23.902374]
[1731630632712,27.98682691,212.21,212.14,23.902374]
[1731630633716,11.7785,212.26,212.14,23.902374]
[1731630633717,23.27452691,212.19,212.14,23.902374]
[1731630633917,23.27452691,212.19,212.14,4.7137]
[1731630634239,23.27452691,212.19,212.15,23.776884]
[1731630634452,23.27452691,212.21,212.16,0.12549]
[1731630634915,23.27452691,212.25,212.18,23.902374]
[1731630635416,23.27452691,212.23,212.18,0.12549]
[1731630635619,23.27452691,212.25,212.18,0.12549]
[1731630635818,23.27452691,212.25,212.2,0.12549]
[1731630636035,27.98592691,212.25,212.2,0.12549]
[1731630636233,23.27452691,212.25,212.2,0.12549]
[1731630636419,23.27452691,212.21,212.2,0.12549]
[1731630636619,23.27452691,212.21,212.13,11.7847]
[1731630636944,23.27452691,212.23,212.16,23.27452691]
[1731630637348,23.27452691,212.19,212.14,0.12549]
[1731630637725,23.27452691,212.19,212.14,23.902374]
[1731630637921,23.27452691,212.21,212.14,23.902374]
[1731630638229,23.27452691,212.21,212.14,51.89060091]
[1731630638644,23.27452691,212.25,212.18,23.27452691]
[1731630638951,4.7109,212.27,212.18,23.27452691]
[1731630638952,27.98542691,212.27,212.21,23.776884]
[1731630639842,27.98542691,212.27,212.22,0.12549]
[1731630640049,23.27452691,212.27,212.22,0.12549]
[1731630640247,27.98512691,212.29,212.24,0.12549]
[1731630640546,23.27452691,212.29,212.24,0.12549]
[1731630641049,27.98422691,212.33,212.26,0.12549]
[1731630641631,27.98422691,212.33,212.28,0.12549]
[1731630641823,23.27452691,212.33,212.28,0.12549]
[1731630642942,23.27452691,212.31,212.28,0.12549]
[1731630643838,20.0,212.32,212.28,0.12549]
[1731630644346,20.0,212.32,212.26,23.902374]
[1731630645349,23.27452691,212.31,212.26,23.902374]
[1731630646033,23.27452691,212.31,212.23,23.776884]
[1731630646230,20.0,212.3,212.22,23.27452691]
[1731630646437,23.27452691,212.25,212.19,6.3859]
[1731630646624,23.27452691,212.23,212.19,6.3859]
[1731630647331,23.27452691,212.23,212.21,0.12549]
[1731630647939,23.27452691,212.23,212.21,23.902374]
[1731630648368,27.98652691,212.23,212.21,23.902374]
[1731630648842,23.27452691,212.25,212.21,23.902374]
[1731630649425,27.98612691,212.25,212.21,23.902374]
[1731630650436,23.27452691,212.23,212.21,23.902374]
[1731630650746,23.27452691,212.23,212.19,6.3859]
[1731630651446,23.27452691,212.23,212.2,0.12549]
[1731630651644,4.7116,212.25,212.2,0.12549]
[1731630651645,27.98612691,212.25,212.2,0.12549]
[1731630651830,23.27452691,212.25,212.2,0.12549]
[1731630652029,23.27452691,212.27,212.2,23.902374]
[1731630652534,23.27452691,212.25,212.2,23.902374]
[1731630652733,23.27452691,212.23,212.2,23.902374]
[1731630652954,20.0,212.26,212.19,6.3859]
[1731630653146,23.27452691,212.21,212.15,26.7852]
[1731630653332,23.27452691,212.21,212.15,31.4988]
[1731630653644,23.27452691,212.21,212.15,26.7852]
[1731630653823,23.27452691,212.21,212.16,0.12549]
[1731630654450,23.27452691,212.21,212.16,23.902374]
[1731630654747,23.27452691,212.19,212.15,15.0012]
[1731630655133,23.27452691,212.17,212.13,0.7068099]
[1731630655642,23.27452691,212.15,212.13,0.7068099]
[1731630655957,20.0,212.14,212.13,0.7068099]
[1731630656442,23.27452691,212.15,212.13,0.7068099]
[1731630656443,23.27452691,212.15,212.13,0.8322999]
[1731630656652,4.7138,212.14,212.13,0.8322999]
[1731630657225,24.7138,212.14,212.13,0.7068099]
[1731630657637,24.7138,212.14,212.13,0.8322999]
[1731630658249,4.7138,212.14,212.13,0.8322999]
[1731630658551,24.7138,212.14,212.13,0.8322999]
[1731630660146,24.7138,212.14,212.13,0.7068099]
[1731630660352,24.7138,212.14,212.03,22.4694]
[1731630660644,24.7138,212.14,211.97,11.7936]
[1731630660645,23.27452691,212.04,211.98,6.0542]
[1731630660853,23.27452691,212.01,211.98,6.0542]
[1731630661350,23.27452691,212.03,211.98,6.0542]
[1731630661734,23.27452691,212.03,211.99,0.12549]
[1731630662053,27.99082691,212.03,211.99,0.12549]
[1731630663130,27.99082691,212.03,211.98,6.0542]
[1731630664054,27.99082691,212.03,211.99,0.12549]
[1731630664956,23.27452691,212.07,211.99,23.902374]
[1731630665125,23.27452691,212.09,212.02,0.12549]
[1731630665332,23.27452691,212.09,212.02,35.693674]
[1731630665333,27.98952691,212.09,212.02,35.693674]
[1731630666254,27.98952691,212.09,212.02,40.410174]
[1731630666457,23.27452691,212.13,212.05,23.27452691]
[1731630666754,23.27452691,212.15,212.08,23.776884]
[1731630666928,23.27452691,212.13,212.08,23.776884]
[1731630667328,23.27452691,212.11,212.09,0.12549]
[1731630667947,20.0,212.1,212.0,4.7168]
[1731630668159,23.27452691,212.04,211.99,4.7171]
[1731630668456,23.27452691,212.04,212.0,0.12549]
[1731630669452,23.27452691,212.06,212.0,28.493684]
[1731630669960,23.27452691,212.06,212.0,23.776884]
[1731630670259,23.27452691,212.04,212.01,0.12549]
[1731630670455,23.27452691,212.06,212.01,0.12549]
[1731630670756,23.27452691,212.12,212.06,23.902374]
[1731630670942,23.27452691,212.17,212.1,23.27452691]
[1731630671163,15.2839,212.26,212.13,23.776884]
[1731630671336,23.27452691,212.18,212.09,6.2745]
[1731630671527,4.7132,212.17,212.1,28.491584]
[1731630671750,23.27452691,212.16,212.1,23.776884]
[1731630672061,23.27452691,212.18,212.12,23.776884]
[1731630672559,23.27452691,212.19,212.13,0.12549]
[1731630673353,23.27452691,212.19,212.11,0.12549]
[1731630675253,4.7129,212.18,212.11,4.83989]
[1731630675435,4.7127,212.2,212.13,0.12549]
[1731630675633,23.27452691,212.17,212.13,0.12549]
[1731630675950,23.27452691,212.15,212.09,6.2745]
[1731630676256,23.27452691,212.11,212.04,11.2183]
[1731630676429,23.27452691,212.11,212.05,0.12549]
[1731630676957,23.27452691,212.13,212.04,46.28302691]